bitfinex/quotes_ETHUSD_20240925
["timestamp","ask_amount","ask_price","bid_price","bid_amount"]
[1727279801908,0.02707011,2605.4,2605.1,3.83853]
[1727279802217,0.8079,2605.6,2605.2,3.83844]
[1727279802368,0.8079,2605.6,2605.1,3.83853]
[1727279802369,0.02683347,2605.3,2605.1,3.83853]
[1727279802571,0.8079,2605.6,2605.2,3.83847]
[1727279803008,0.8079,2605.6,2605.4,3.83808]
[1727279803311,3.83762,2605.8,2605.2,3.83839]
[1727279803474,0.76431966,2605.9,2605.3,3.8382]
[1727279803672,0.76431966,2605.9,2605.4,3.83813]
[1727279803867,5.0673706,2606.0,2605.5,3.838]
[1727279803868,4.2594706,2606.0,2605.5,3.838]
[1727279804075,3.0,2606.5,2605.8,3.83749]
[1727279804076,3.8367,2606.5,2605.8,3.83749]
[1727279804307,4.64427,2606.7,2606.1,3.83712]
[1727279804520,4.64427,2606.7,2606.2,3.83691]
[1727279804521,0.464426,2606.6,2606.2,3.83691]
[1727279804806,0.8079,2606.7,2606.2,3.83691]
[1727279804807,4.64424,2606.7,2606.2,3.83691]
[1727279804969,4.64424,2606.7,2605.6,0.8174]
[1727279804970,3.83649,2606.6,2606.0,3.83717]
[1727279805602,0.8079,2606.7,2606.3,3.83677]
[1727279805993,0.8191,2607.1,2606.6,3.83633]
[1727279806308,3.83611,2606.9,2606.4,3.83658]
[1727279806643,3.83585,2607.0,2606.5,3.83655]
[1727279806829,3.83568,2607.1,2606.5,3.83655]
[1727279807127,0.767129,2607.0,2606.5,3.83648]
[1727279807328,0.767129,2607.0,2606.5,3.83647]
[1727279807490,0.06551787,2606.9,2606.5,3.83647]
[1727279807691,3.83567,2607.1,2606.5,3.83647]
[1727279807892,0.06575427,2606.8,2606.5,3.83647]
[1727279808123,3.83621,2606.8,2606.1,7.67405]
[1727279808337,3.83657,2606.5,2605.7,4.60684]
[1727279808628,4.66092,2606.6,2606.1,3.83704]
[1727279808846,0.06728614,2606.4,2606.2,3.83697]
[1727279809134,0.0671353,2606.3,2606.2,3.83697]
[1727279809427,0.8245,2606.6,2606.2,3.83697]
[1727279809629,0.06709665,2606.3,2606.2,3.83697]
[1727279809933,0.8880581,2606.6,2606.4,3.83661]
[1727279810130,0.8245,2606.9,2605.7,0.7692]
[1727279810429,6.98214995,2607.4,2606.6,3.83638]
[1727279810430,3.83575,2607.1,2606.6,3.83638]
[1727279810629,0.849589,2607.0,2606.6,7.67271]
[1727279810785,0.849589,2607.0,2606.7,3.83625]
[1727279810990,0.849589,2607.0,2605.8,0.55]
[1727279810991,0.849589,2607.0,2606.8,3.83606]
[1727279811230,4.66013,2607.2,2606.7,3.83626]
[1727279811544,0.8245,2607.2,2606.8,3.8361]
[1727279811689,0.8245,2607.2,2606.7,3.83618]
[1727279812037,4.66719,2607.5,2607.0,3.83582]
[1727279812188,4.66719,2607.5,2606.4,0.7564]
[1727279812189,0.383519,2607.4,2606.4,0.7564]
[1727279812388,0.832,2607.5,2606.4,0.7564]
[1727279812389,0.832,2607.5,2607.1,3.83558]
[1727279812735,0.832,2607.5,2606.9,3.83592]
[1727279812736,3.83476,2607.8,2607.2,3.83542]
[1727279813031,3.83476,2607.8,2606.8,5.19934]
[1727279813032,4.647947,2607.9,2607.5,3.83507]
[1727279813234,0.4647947,2607.8,2607.5,3.83501]
[1727279813389,0.011947,2607.9,2607.6,3.83484]
[1727279813752,0.011947,2607.9,2607.8,3.83464]
[1727279813907,0.011947,2607.9,2607.6,4.63479]
[1727279814120,0.011947,2607.9,2607.8,3.83464]
[1727279814656,0.011947,2607.9,2607.8,5.18454]
[1727279815300,0.011947,2607.9,2607.8,8.18454]
[1727279815536,0.0606114,2609.1,2608.3,3.83383]
[1727279815715,3.83325,2608.8,2608.3,3.83383]
[1727279815935,3.83325,2608.8,2607.6,4.63921]
[1727279815936,0.8041,2608.6,2607.6,4.63921]
[1727279816138,0.8041,2608.6,2608.1,3.83412]
[1727279816337,0.8041,2608.6,2607.6,0.8044]
[1727279816338,3.83386,2608.4,2607.6,0.8044]
[1727279816634,3.83393,2608.3,2607.7,3.83466]
[1727279816807,4.217323,2608.3,2607.7,3.83466]
[1727279817005,4.217323,2608.3,2607.8,3.83464]
[1727279817236,0.383393,2608.3,2607.9,3.8344]
[1727279817502,0.383393,2608.3,2607.6,4.63926]
[1727279817707,3.83393,2608.3,2607.6,3.83486]
[1727279817937,3.83415,2608.2,2607.6,7.66967]
[1727279818257,3.0,2608.5,2607.4,3.83515]
[1727279818418,3.0,2608.5,2607.2,4.59432]
[1727279818419,3.83451,2607.9,2607.2,8.42979]
[1727279818751,4.62355,2607.8,2606.8,0.7589]
[1727279818960,0.462355,2607.7,2606.8,0.7589]
[1727279819251,0.462355,2607.7,2607.3,3.83528]
[1727279819419,4.44450495,2607.7,2606.4,0.7915]
[1727279819628,3.0,2607.3,2606.4,0.7915]
[1727279819833,3.0,2607.3,2605.9,0.7915]
[1727279819834,3.98214995,2607.1,2605.9,0.7915]
[1727279820014,3.98214995,2607.1,2606.1,3.83705]
[1727279820015,3.83627,2606.7,2606.1,3.83705]
[1727279820209,3.83656,2606.5,2606.0,3.83719]
[1727279820509,3.83643,2606.6,2605.9,0.7915]
[1727279820510,3.83672,2606.4,2605.9,3.83735]
[1727279820746,3.83644,2606.6,2606.0,3.83719]
[1727279820915,4.3658055,2606.6,2606.0,3.83719]
[1727279821119,4.3658055,2606.6,2605.5,0.7915]
[1727279821120,4.3658955,2606.6,2605.8,3.83751]
[1727279821322,4.3658955,2606.6,2605.6,3.83779]
[1727279821323,3.83656,2606.5,2605.6,3.83779]
[1727279821519,3.83728,2606.1,2605.6,3.83779]
[1727279821948,3.83728,2606.1,2605.5,3.83794]
[1727279822153,3.83728,2606.1,2605.4,3.83811]
[1727279822154,3.83746,2605.9,2605.4,3.8381]
[1727279822358,3.83746,2605.9,2605.2,3.83839]
[1727279822359,3.83775,2605.7,2605.2,3.83839]
[1727279822670,3.83775,2605.7,2605.0,3.8387]
[1727279822826,0.06691143,2605.6,2605.2,3.8384]
[1727279823010,0.06691143,2605.6,2605.3,3.83824]
[1727279823427,0.06691143,2605.6,2605.3,3.83826]
[1727279823634,0.06691143,2605.6,2605.3,3.83824]
[1727279823811,3.83752,2605.9,2605.3,3.83824]
[1727279824032,0.06554328,2605.5,2605.4,3.83818]
[1727279824232,4.985717,2605.9,2604.8,4.65191]
[1727279824233,4.985717,2605.9,2605.1,3.83858]
[1727279824556,3.83776,2605.7,2605.2,3.83839]
[1727279824929,0.06527364,2605.6,2605.2,3.83839]
[1727279825314,0.06527364,2605.6,2605.3,3.83832]
[1727279825547,3.83782,2605.7,2605.1,3.83852]
[1727279825859,1.148197,2605.9,2604.6,0.95]
[1727279825860,4.49286308,2605.6,2604.6,0.95]
[1727279826058,3.83844,2605.3,2604.8,3.83906]
[1727279826212,3.83868,2605.1,2604.6,0.95]
[1727279826411,3.83884,2605.0,2604.6,0.95]
[1727279826614,8.46809,2604.9,2604.6,0.95]
[1727279826808,3.83921,2604.7,2604.6,0.95]
[1727279827013,3.90624551,2604.7,2604.6,0.95]
[1727279827659,0.06703551,2604.7,2604.6,0.95]
[1727279828019,3.83908,2604.8,2604.6,0.95]
[1727279828213,0.06307658,2604.7,2604.6,0.95]
[1727279828611,4.69231866,2604.7,2604.6,0.95]
[1727279828817,4.75517984,2604.7,2604.6,0.95]
[1727279829625,4.75517984,2604.7,2604.1,0.0606114]
[1727279829626,3.83952,2604.5,2604.1,0.0606114]
[1727279829963,0.06357134,2604.4,2604.1,0.0606114]
[1727279830117,3.83946,2604.6,2604.1,0.5306114]
[1727279830310,0.06357247,2604.3,2604.1,0.5306114]
[1727279830556,3.83995,2604.2,2604.1,0.5306114]
[1727279830855,0.06371497,2604.2,2604.1,0.5306114]
[1727279831294,3.83995,2604.2,2604.1,0.5306114]
[1727279831587,5.19115254,2604.2,2604.1,0.5306114]
[1727279832517,8.19115254,2604.2,2604.1,0.5306114]
[1727279832930,1.35120254,2604.2,2604.1,0.5306114]
[1727279833131,0.06374876,2604.2,2604.1,0.5306114]
[1727279833531,4.60681,2604.3,2604.1,0.5306114]
[1727279833830,0.06355624,2604.2,2604.1,0.5306114]
[1727279834229,0.767,2604.3,2604.1,0.5306114]
[1727279834430,0.06355624,2604.2,2604.1,0.5306114]
[1727279834859,3.83958,2604.5,2604.1,0.5306114]
[1727279835064,0.06355624,2604.2,2604.1,0.5306114]
[1727279835231,9.33364866,2604.7,2604.1,0.5306114]
[1727279835232,3.83967,2604.4,2604.1,0.5306114]
[1727279835752,0.06314435,2604.3,2604.1,0.5306114]
[1727279835952,3.83958,2604.5,2604.1,0.5306114]
[1727279836159,0.06338113,2604.2,2604.1,0.5306114]
[1727279836479,3.83965,2604.4,2604.1,0.5306114]
[1727279836685,0.06338113,2604.2,2604.1,0.5306114]
[1727279836884,0.06314435,2604.3,2604.1,0.5306114]
[1727279837291,8.58718864,2604.6,2604.1,0.5306114]
[1727279837448,0.06338113,2604.2,2604.1,0.5306114]
[1727279837792,3.83958,2604.5,2604.1,0.5306114]
[1727279838082,3.83972,2604.4,2604.1,0.5306114]
[1727279838283,3.90303517,2604.3,2604.1,0.5306114]
[1727279838450,3.83995,2604.2,2604.1,0.5306114]
[1727279838651,3.90343216,2604.2,2604.1,0.5306114]
[1727279839190,4.67775638,2604.2,2604.1,0.5306114]
[1727279840693,5.50755638,2604.2,2604.1,0.5306114]
[1727279842216,7.67775638,2604.2,2603.9,3.10827333]
[1727279842497,3.84157,2603.1,2603.0,0.0375436]
[1727279842694,4.685806,2603.1,2603.0,0.0628104]
[1727279842993,4.75236543,2603.1,2603.0,0.0628104]
[1727279843204,5.57536543,2603.1,2603.0,0.0628104]
[1727279843493,0.06655943,2603.1,2603.0,0.0628104]
[1727279843695,3.90812943,2603.1,2603.0,0.0628104]
[1727279843865,0.06655943,2603.1,2603.0,0.0628104]
[1727279844278,0.823,2603.4,2603.0,0.0628104]
[1727279844489,3.98876888,2603.8,2603.0,0.0628104]
[1727279844490,0.06578498,2603.1,2603.0,0.0628104]
[1727279844796,0.06263253,2603.1,2603.0,0.0628104]
[1727279844997,3.84106,2603.5,2603.0,0.0628104]
[1727279845213,0.06272796,2603.1,2603.0,0.0628104]
[1727279845375,4.63087068,2603.1,2603.0,0.0628104]
[1727279845705,4.69366035,2603.1,2603.0,0.0628104]
[1727279845863,0.06278967,2603.1,2603.0,0.0628104]
[1727279846305,3.90435967,2603.1,2603.0,0.0628104]
[1727279846805,0.82788967,2603.1,2603.0,0.0628104]
[1727279847298,0.06278967,2603.1,2603.0,0.0628104]
[1727279847513,3.84128,2603.3,2603.0,0.0628104]
[1727279847808,0.06015674,2603.1,2603.0,0.0628104]
[1727279848124,3.84063,2603.8,2603.1,3.84147]
[1727279848125,7.68132,2603.8,2603.1,3.84147]
[1727279848403,0.06279623,2603.1,2603.0,7.7207536]
[1727279848574,0.848272,2603.7,2603.2,3.84136]
[1727279848899,0.848272,2603.7,2603.0,7.7459604]
[1727279848900,4.689032,2603.7,2603.0,7.7459604]
[1727279849209,5.09267209,2603.6,2603.0,3.9044404]
[1727279849384,5.09267209,2603.6,2603.1,3.8415]
[1727279849565,4.64179,2603.9,2603.2,3.8414]
[1727279849766,3.84005,2604.2,2603.2,3.84135]
[1727279849966,3.84054,2603.8,2603.3,3.8412]
[1727279850165,7.6812,2603.8,2603.2,3.84142]
[1727279850412,3.84073,2603.7,2603.2,3.8666868]
[1727279850560,3.84084,2603.6,2603.2,0.0252668]
[1727279850766,3.8406,2603.8,2603.2,3.8666768]
[1727279851283,3.84035,2604.0,2603.4,3.84109]
[1727279851608,3.84055,2603.8,2603.4,0.0252668]
[1727279852626,10.82974888,2603.5,2603.4,0.0252668]
[1727279852928,6.84157,2603.1,2603.0,0.0375436]
[1727279853101,11.63963888,2603.1,2603.0,0.0375436]
[1727279853283,13.38774677,2603.1,2603.0,0.0375436]
[1727279853476,13.38774677,2603.1,2602.5,0.25]
[1727279853477,3.84231,2602.6,2602.5,0.25]
[1727279853677,11.70210189,2602.6,2602.5,0.25]
[1727279854425,11.70210189,2602.6,2601.4,0.8435436]
[1727279854426,11.70210189,2602.6,2601.1,0.0465232]
[1727279854428,7.61488,2601.9,2601.1,0.0465232]
[1727279854637,6.0861754,2602.5,2601.3,3.84414]
[1727279854916,0.57222378,2602.6,2601.7,3.84364]
[1727279854917,3.84239,2602.6,2601.7,3.84364]
[1727279855225,0.05996489,2602.5,2601.7,3.84349]
[1727279855463,0.05996489,2602.5,2601.9,3.84333]
[1727279855464,3.90242489,2602.5,2601.9,3.84333]
[1727279855631,3.90242489,2602.5,2601.4,0.777]
[1727279855632,3.84298,2602.2,2601.5,3.84385]
[1727279855779,0.05996489,2602.5,2602.2,3.8428]
[1727279855981,7.68331,2603.1,2602.5,3.84236]
[1727279856315,0.8222,2603.4,2602.2,0.777]
[1727279856316,0.768331,2603.0,2602.3,3.84271]
[1727279856480,3.84181,2603.0,2602.4,3.84257]
[1727279856692,0.8222,2603.4,2602.2,0.777]
[1727279856693,4.6634,2603.4,2602.6,3.84222]
[1727279856877,0.46634,2603.3,2602.7,3.84206]
[1727279857388,3.84101,2603.5,2602.9,7.68364]
[1727279857576,3.84101,2603.5,2602.2,0.777]
[1727279857577,3.84069,2603.7,2603.1,3.84154]
[1727279857799,4.60213,2603.8,2603.1,3.84148]
[1727279857800,3.84063,2603.8,2603.1,3.84148]
[1727279857973,0.384035,2603.9,2603.0,0.7679]
[1727279858193,3.84019,2604.1,2603.5,3.84095]
[1727279858427,4.60106,2604.5,2603.0,0.7679]
[1727279858428,3.84098,2603.5,2603.0,0.7679]
[1727279858593,3.84167,2603.1,2602.6,0.8254]
[1727279858978,3.84135,2603.3,2602.7,3.84206]
[1727279859178,3.84139,2603.3,2602.6,0.8254]
[1727279859412,4.70765486,2603.3,2602.7,3.84206]
[1727279859776,4.70765486,2603.3,2602.8,3.84192]
[1727279859980,3.84136,2603.3,2602.8,3.84192]
[1727279860180,3.84136,2603.3,2602.7,3.84206]
[1727279860614,0.384098,2603.4,2602.7,3.84206]
[1727279860923,3.84167,2603.1,2602.6,0.8254]
[1727279861138,0.05173764,2603.0,2602.6,0.8254]
[1727279861424,0.05173764,2603.0,2602.6,4.66759]
[1727279861637,3.84209,2602.8,2602.1,4.59376]
[1727279861928,3.84246,2602.5,2602.1,0.7508]
[1727279862221,0.38938276,2602.8,2602.1,0.7508]
[1727279862222,3.84277,2602.3,2602.1,0.7508]
[1727279862514,0.05310472,2602.2,2601.8,4.6379]
[1727279862891,3.8422,2602.7,2602.0,3.84318]
[1727279863119,3.84207,2602.8,2601.8,0.7945]
[1727279863344,0.02155142,2602.7,2602.3,3.84273]
[1727279863652,0.02155142,2602.7,2601.9,0.46381]
[1727279863653,3.84219,2602.7,2602.1,7.68599]
[1727279863953,3.84278,2602.3,2601.8,0.7945]
[1727279864484,0.07309893,2602.6,2601.3,3.84421]
[1727279864485,3.84321,2602.0,2601.5,3.84385]
[1727279864609,3.84307,2602.1,2601.5,3.84385]
[1727279864610,7.68623,2602.1,2601.5,3.84385]
[1727279864812,3.84322,2602.0,2601.5,3.84385]
[1727279865026,7.68625,2602.1,2601.5,3.84385]
[1727279865258,0.07309893,2602.6,2601.5,3.84385]
[1727279865259,3.84284,2602.3,2601.5,3.84385]
[1727279865407,3.84284,2602.3,2601.7,3.84349]
[1727279865607,3.84284,2602.3,2601.8,3.84344]
[1727279865842,3.84264,2602.4,2601.9,3.84323]
[1727279866153,3.84264,2602.4,2601.8,3.84344]
[1727279866154,3.84249,2602.5,2602.0,3.84305]
[1727279866308,0.82415888,2602.6,2601.5,4.305215]
[1727279866309,3.84291,2602.2,2601.6,3.84365]
[1727279866512,3.84288,2602.3,2601.6,3.84371]
[1727279866839,3.86230258,2602.2,2601.7,3.84359]
[1727279867145,0.01939258,2602.2,2601.7,3.84359]
[1727279867354,3.84305,2602.1,2601.4,4.61325]
[1727279867649,0.0730314,2602.0,2601.5,3.84393]
[1727279867819,0.0730314,2602.0,2601.6,3.84368]
[1727279868006,0.0730314,2602.0,2601.8,3.84348]
[1727279868250,0.0730314,2602.0,2601.9,3.84334]
[1727279868613,0.0730314,2602.0,2601.9,4.65374]
[1727279869015,3.84196,2602.9,2602.3,3.84261]
[1727279869312,0.751,2603.2,2602.1,3.84295]
[1727279869313,3.84224,2602.7,2602.1,3.84295]
[1727279869516,4.226464,2602.7,2602.0,3.84308]
[1727279869812,4.59251,2603.2,2602.4,3.84248]
[1727279869813,3.84181,2603.0,2602.4,3.84248]
[1727279870048,3.84187,2602.9,2602.4,3.84248]
[1727279870248,3.86204764,2602.9,2602.4,3.84248]
[1727279870455,0.02017764,2602.9,2602.5,3.84245]
[1727279870978,0.02017764,2602.9,2602.2,7.68556]
[1727279871182,0.751,2603.2,2602.3,3.84271]
[1727279871183,3.84209,2602.8,2602.3,3.84271]
[1727279871328,0.01746334,2602.8,2601.9,1.3604]
[1727279871534,3.842,2602.9,2602.4,3.84253]
[1727279871766,3.842,2602.9,2602.2,3.84279]
[1727279871767,3.84208,2602.8,2602.2,3.84277]
[1727279871977,3.86080468,2602.8,2602.3,3.84273]
[1727279872179,0.01872468,2602.8,2602.7,3.84216]
[1727279872332,3.84106,2603.5,2602.9,3.84175]
[1727279872539,3.8409,2603.6,2603.1,3.84152]
[1727279872833,3.84079,2603.7,2603.1,3.84152]
[1727279872834,0.02126583,2603.4,2603.2,3.8414]
[1727279873046,0.02126583,2603.4,2603.3,3.84127]
[1727279873249,0.02126583,2603.4,2603.2,3.84131]
[1727279873453,3.84083,2603.7,2603.2,7.68262]
[1727279873652,0.02136907,2603.3,2603.2,7.68262]
[1727279873867,3.84054,2603.8,2603.3,3.84127]
[1727279874385,0.06896787,2603.7,2603.3,3.84127]
[1727279874585,3.90967787,2603.7,2603.2,3.84141]
[1727279874740,3.90967787,2603.7,2603.2,7.68276]
[1727279874936,0.06896787,2603.7,2603.3,3.84119]
[1727279875838,0.06896787,2603.7,2603.4,3.84112]
[1727279876041,0.06896787,2603.7,2603.3,3.84127]
[1727279876283,0.06896787,2603.7,2603.4,3.84111]
[1727279877589,0.06896787,2603.7,2603.3,3.84126]
[1727279877748,0.06896787,2603.7,2603.4,3.84111]
[1727279880632,0.06896787,2603.7,2603.6,4.59283]
[1727279880833,0.06896787,2603.7,2603.6,6.07069205]
[1727279881134,0.0131944,2604.8,2604.5,3.83949]
[1727279881444,0.0131944,2604.8,2604.3,4.59173]
[1727279881445,0.04353242,2604.7,2604.3,4.59173]
[1727279881723,0.04353242,2604.7,2604.3,0.752]
[1727279881890,0.0131944,2604.8,2604.3,0.752]
[1727279882092,0.0131944,2604.8,2604.6,3.83934]
[1727279882290,0.0131944,2604.8,2604.7,3.83921]
[1727279882677,0.05644157,2604.8,2604.7,3.83921]
[1727279882909,0.0131944,2604.8,2604.7,3.83921]
[1727279883113,0.05540453,2604.8,2604.7,3.83921]
[1727279883287,0.0131944,2604.8,2604.7,3.83921]
[1727279883484,0.05534287,2604.8,2604.6,7.67861]
[1727279883795,0.05534287,2604.8,2604.3,0.752]
[1727279883796,0.04457947,2604.7,2604.3,0.752]
[1727279883990,0.0131944,2604.8,2604.5,3.83942]
[1727279884194,0.0131944,2604.8,2604.4,3.83952]
[1727279884403,0.0131944,2604.8,2603.8,3.84039]
[1727279884404,3.83979,2604.4,2603.8,3.84039]
[1727279884618,0.81048516,2604.7,2603.7,0.8104]
[1727279884619,8.51451562,2604.7,2604.1,3.83998]
[1727279884826,8.51451562,2604.7,2604.2,3.83993]
[1727279884827,0.02603469,2604.3,2604.2,3.83993]
[1727279885533,0.02603469,2604.3,2604.1,3.84008]
[1727279885739,0.04238516,2604.7,2604.0,3.84021]
[1727279885740,3.8396,2604.5,2604.0,3.84021]
[1727279885915,3.8396,2604.5,2603.7,0.8104]
[1727279885916,3.90938422,2604.2,2603.7,4.65097]
[1727279886231,0.04372448,2604.1,2603.7,4.65097]
[1727279886589,5.406467,2604.4,2603.8,3.84053]
[1727279886590,9.246237,2604.4,2603.8,3.84053]
[1727279886802,0.04702238,2604.0,2603.9,3.84037]
[1727279887026,5.406467,2604.4,2603.9,3.84037]
[1727279887186,4.63857,2604.4,2604.0,3.84021]
[1727279887391,3.83977,2604.4,2603.9,3.84037]
[1727279887614,3.83947,2604.6,2603.7,0.8104]
[1727279887800,0.7988,2604.7,2603.8,4.39052]
[1727279888022,0.7988,2604.7,2604.2,3.83986]
[1727279888023,4.63808,2604.7,2604.2,3.83986]
[1727279888227,4.63808,2604.7,2603.9,0.904158]
[1727279888228,0.02368457,2604.6,2604.3,3.8398]
[1727279888550,0.02368457,2604.6,2604.5,3.8395]
[1727279888835,0.0131944,2604.8,2604.4,4.74731819]
[1727279888836,0.0131944,2604.8,2604.7,3.83921]
[1727279889725,0.0131944,2604.8,2604.7,4.38921]
[1727279889926,0.0131944,2604.8,2604.7,5.17701]
[1727279890104,0.0131944,2604.8,2604.7,6.52239506]
[1727279890290,0.0131944,2604.8,2604.7,9.52239506]
[1727279890696,0.0597176,2606.0,2604.7,9.52239506]
[1727279890697,0.0597176,2606.0,2605.7,3.83772]
[1727279890912,0.0597176,2606.0,2605.8,3.83759]
[1727279891125,0.0597176,2606.0,2605.6,3.83778]
[1727279891329,0.0597176,2606.0,2605.5,0.7591]
[1727279891330,3.8971276,2606.0,2605.5,4.59705]
[1727279891541,0.0597176,2606.0,2605.6,3.83775]
[1727279891892,0.03060538,2605.9,2605.6,3.83775]
[1727279892590,0.03060538,2605.9,2605.4,3.83808]
[1727279893183,0.03060538,2605.9,2605.5,3.83802]
[1727279894158,0.03060538,2605.9,2605.4,3.83808]
[1727279894693,0.03060538,2605.9,2605.4,7.67615]
[1727279894916,0.03060538,2605.9,2605.4,3.83807]
[1727279895092,3.83762,2605.8,2605.3,3.83832]
[1727279895296,3.83775,2605.7,2605.2,3.83837]
[1727279895508,4.68874167,2605.7,2605.2,3.83837]
[1727279895695,0.85099167,2605.7,2605.3,3.83832]
[1727279895892,0.02829167,2605.7,2605.4,3.83818]
[1727279896199,4.7197176,2606.0,2605.4,3.83807]
[1727279896393,4.7197176,2606.0,2605.5,3.83792]
[1727279896741,0.02866771,2605.9,2605.5,3.83792]
[1727279897030,0.02866771,2605.9,2605.8,3.83759]
[1727279897595,0.06356341,2605.9,2605.8,3.83759]
[1727279897795,0.06356341,2605.9,2605.7,3.83773]
[1727279898030,0.06356341,2605.9,2605.5,4.605519]
[1727279898244,0.06356341,2605.9,2605.4,0.7715]
[1727279898245,3.90101341,2605.9,2605.4,0.7715]
[1727279898398,0.06356341,2605.9,2605.3,3.8382]
[1727279898591,0.06356341,2605.9,2605.2,3.83834]
[1727279898907,0.06356341,2605.9,2605.5,3.83794]
[1727279899219,0.06356341,2605.9,2605.3,3.83827]
[1727279899421,3.90110341,2605.9,2605.3,7.67648]
[1727279899622,3.90110341,2605.9,2605.1,0.8171]
[1727279899623,0.06356341,2605.9,2605.5,3.83791]
[1727279899841,0.06356341,2605.9,2605.6,3.83788]
[1727279900139,0.06356341,2605.9,2605.7,3.83766]
[1727279900538,0.06356341,2605.9,2605.8,3.83759]
[1727279900750,0.06356341,2605.9,2605.7,3.83766]
[1727279901664,0.06356341,2605.9,2605.8,3.83759]
[1727279901864,0.06356341,2605.9,2605.7,3.83773]
[1727279902033,0.06356341,2605.9,2605.7,3.83764]
[1727279902441,0.06356341,2605.9,2605.5,3.83794]
[1727279902676,0.06356341,2605.9,2605.4,3.83805]
[1727279902970,0.06356341,2605.9,2605.5,3.83794]
[1727279903323,3.90102341,2605.9,2605.4,7.67615]
[1727279903628,0.06356341,2605.9,2605.4,3.83805]
[1727279903858,0.06356341,2605.9,2605.4,3.83804]
[1727279904081,0.06356341,2605.9,2605.5,3.83796]
[1727279904271,3.90102341,2605.9,2605.5,3.83796]
[1727279904563,3.90102341,2605.9,2605.5,3.83802]
[1727279904564,5.44121451,2605.9,2605.5,3.83802]
[1727279904762,5.44121451,2605.9,2605.4,3.83809]
[1727279904987,5.44121451,2605.9,2604.9,3.8388]
[1727279904988,3.83827,2605.4,2604.9,3.8388]
[1727279905278,0.06210284,2605.3,2604.9,3.83883]
[1727279906174,3.83873,2605.1,2604.5,3.83949]
[1727279906468,3.83873,2605.1,2604.3,3.83971]
[1727279906469,3.83913,2604.8,2604.3,3.83971]
[1727279906626,4.62753,2604.9,2604.4,3.83957]
[1727279906825,0.39008328,2605.1,2604.6,3.83935]
[1727279907074,4.62714,2605.2,2604.7,3.83916]
[1727279907425,3.83883,2605.0,2604.6,3.83935]
[1727279907979,3.83848,2605.2,2604.7,3.83913]
[1727279908150,3.83848,2605.2,2604.7,4.223033]
[1727279908358,3.83848,2605.2,2604.7,3.83912]
[1727279908739,3.83892,2604.9,2604.3,3.83973]
[1727279909063,0.02424992,2604.8,2604.5,3.83949]
[1727279909269,0.02424992,2604.8,2604.3,3.83973]
[1727279909455,3.86337992,2604.8,2604.3,3.83973]
[1727279909825,3.86337992,2604.8,2604.3,7.67945]
[1727279910041,3.86337992,2604.8,2604.3,4.690555]
[1727279910042,0.02424992,2604.8,2604.3,4.690555]
[1727279910581,3.86338992,2604.8,2604.3,8.530275]
[1727279910741,3.83934,2604.7,2604.2,3.8399]
[1727279910952,3.86338992,2604.8,2604.3,3.83975]
[1727279911171,0.02434474,2604.6,2604.2,3.8399]
[1727279911343,0.02410792,2604.5,2604.3,3.83979]
[1727279911544,3.83914,2604.8,2604.3,3.83979]
[1727279911841,0.02422191,2604.7,2604.3,3.83979]
[1727279912066,0.02422191,2604.7,2604.5,3.8395]
[1727279912261,0.7575,2604.9,2604.3,0.767969]
[1727279912592,0.03415272,2604.8,2604.4,3.83964]
[1727279912750,3.87326272,2604.8,2604.3,3.8398]
[1727279912950,3.87326272,2604.8,2604.4,3.83964]
[1727279913273,3.87326272,2604.8,2603.9,4.65802]
[1727279913274,3.83928,2604.7,2604.1,3.84002]
[1727279913445,3.83943,2604.6,2604.1,3.84002]
[1727279913853,0.49722899,2604.8,2603.9,1.583502]
[1727279914051,3.84024,2604.0,2603.9,0.01]
[1727279914261,3.84,2604.2,2603.9,0.01]
[1727279914498,3.83997,2604.2,2603.9,0.01]
[1727279914989,3.8397,2604.4,2603.9,0.01]
[1727279915197,3.83972,2604.4,2603.9,3.85028]
[1727279915351,3.83972,2604.4,2603.9,7.6906]
[1727279915551,3.87323272,2604.8,2604.3,3.83966]
[1727279915950,0.03415272,2604.8,2604.2,3.83988]
[1727279916153,0.03415272,2604.8,2604.5,3.83949]
[1727279916577,0.03415272,2604.8,2604.5,3.8394]
[1727279916813,0.03415272,2604.8,2604.7,3.83921]
[1727279917251,0.0460401,2605.1,2604.9,3.83882]
[1727279917852,0.0460401,2605.1,2604.9,3.8388]
[1727279918064,0.0460401,2605.1,2605.0,3.83877]
[1727279919512,0.0460401,2605.1,2604.9,3.8388]
[1727279919714,0.0460401,2605.1,2605.0,3.83877]
[1727279921082,0.07372588,2605.1,2605.0,3.83877]
[1727279922912,0.07372588,2605.1,2605.0,4.606527]
[1727279923270,0.0460401,2605.1,2605.0,4.606527]
[1727279924932,0.10563017,2605.1,2604.8,3.83898]
[1727279925093,0.10563017,2605.1,2604.9,3.83891]
[1727279925291,0.10563017,2605.1,2604.7,3.83917]
[1727279925510,0.10563017,2605.1,2604.6,3.8393]
[1727279925511,3.94432017,2605.1,2604.6,3.8393]
[1727279925827,4.80185419,2605.1,2604.6,3.8393]
[1727279926320,4.80185419,2605.1,2604.8,3.83904]
[1727279926321,0.10563017,2605.1,2604.8,3.83904]
[1727279926487,0.10563017,2605.1,2604.8,7.67803]
[1727279927099,0.10563017,2605.1,2604.6,3.83935]
[1727279927299,3.94426017,2605.1,2604.5,3.83949]
[1727279927645,3.83877,2605.0,2604.5,7.67889]
[1727279927933,4.41794619,2605.1,2604.6,3.83929]
[1727279928139,0.0324747,2604.9,2604.6,3.83929]
[1727279928438,0.05937949,2604.8,2604.6,3.83929]
[1727279929702,0.05937949,2604.8,2604.7,3.83921]
[1727279931201,0.05937949,2604.8,2604.6,3.83929]
[1727279931554,0.05937949,2604.8,2604.7,3.83921]
[1727279931755,0.05937949,2604.8,2604.4,3.83953]
[1727279931921,0.05937949,2604.8,2604.6,3.83934]
[1727279933114,0.05937949,2604.8,2604.6,7.6786]
[1727279933306,0.05937949,2604.8,2604.7,3.83921]